Workbook

Sheet Instructions
A1: Refer to the current drainage manual for a more detailed discussion of the methods and equations used. | T1: v14a
B3: So | D3: Cells on the lines below this color or immediately to the right require user entries. Project identification cells above this line need to be populated.
B4: 8 | D4: Cells with this color denote that the total travel time in the ditch segment was changed to 8 minutes if the calculated time was < 8 minutes.
B5: n | D5: The value(s) below this cell is required if a user roughness is entered (see below); otherwise it is optional.
B6: 1.89 | D6: Cells colored in this manner denote that the calculated shear exceeds the allowable shear (user roughness options only).
A8: Storm design intensities are calculated based on NOAA data (NOAA Atlas 14, Volume 2, Version 3.0). Backward compatability with Thiessen polygon intensities is provided.
A9: The appropriate Thiessen zone may be selected from a pull-down box in cell D7. Each zone is shown on the state map shown on the worksheet, "Map".
A10: The NOAA design intensity option may be selected from the drop-down box in cell D7. Current latitude / longitude are displayed based on the current values in the spreadsheet
A11: Retrieving and using NOAA intensities requires that the macro be run twice. The first time is needed for the user to copy NOAA data from the NOAA website to spreadsheet "NOAA Data2".
A12: The second run is needed to run perform the calculations using the retrieved information.
A13: When the program is run, the user will be asked if he wishes to locate the site if cell G11 = "Yes". If the answer is "No", the intensities that populate the NOAA2 spreadsheet will be used.
A14: If the answer is "Yes", Internet Explorer will display a map from the NOAA webpage from which the user copies and pastes the NOAA intensities. When the NOAA webpage is
A15: displayed, the default data is "Precipitation Depth"". Change this option to "Precipitation Intensity". Move the small "X" under the red cursor to the site and zoom in until the site is located.
A16: The NOAA data is displayed below the map. Copy the interior part of the table from "5-min" to the last cell entry for 60-day in the lower right to cells A4 to K41 on sheet "NOAA Data2".
A17: Copy the site identification data including latitude and longitude to cell M1 on the "NOAA Data2" sheet, as shown.
A18: To use the newly copied NOAA values, simply rerun the macro and answer "No" to the previous question about locating the site.
A19: Once NOAA data has been placed into the spreadsheet, the user should change cell G11 to "No".
A21: It is not necessary to enter a specific value for normal depth, dn or roughness. The macro assumes initial values. User values for roughness may be entered by preceding the value
A22: with a specific lower case letter as described below. Specific upper case letters tell the program to solve for roughness using a specified liner type.
A23: When user values for n are entered, actual and allowable shears are calculated. Actual shear is color flagged if greater than allowable shear. User roughness options are:
A24: g.xxx - represents an undeveloped option for Gabion mattress
A25: r.042 - represents a Class II channel lining with roughness = 0.042.
A26: s.045 - represents a Class III channel lining with roughness = 0.045.
A27: t.039 - represents a TRM, type 1 lining as a vegetative Class C grass with roughness = 0.039 and allowable shear = 6 psf.
A28: u.1.5 - represents a rock lined ditch with D50 = 1.5 feet.
A29: v.039 - represents a Vegetative Class C roughness value = 0.039. Allowable shear = 1 psf.
A30: R.042 - represents a Class II channel lining that uses a program calculated roughness.
A31: S.045 - represents a Class III channel lining that uses a program calculated roughness.
A32: There are no options for G,T,U and V. When user roughness options are NOT entered, the program will select a liner that satisties hydraulic flow equations and meets shear requirements.
A34: User and program selected n values are applied to all design storm return intervals. Up to 3 channel segments per storm may be entered.
A35: The first channel segment contains the drainage area for sheet flow, shallow concentrated flow and the first channel segment.
A36: Overland flow, shallow concentrated flow and concentrated channel flow segments calculations may be omitted from the calculations by zeroing out the input data.
A37: KYTC's practice has been to include shallow concentrated flow as part of channel flow.
A38: The 500 year flow is calculated as Q100 * 1.2.
A40: The IDF curve fitting method employed in FHWA's Hydraulic Toolbox 3.0 is included. The exact same coefficients and design storm intensities are obtained if the same NOAA intensity data is used.
A41: A summary of the coefficients used for each design storm is shown beginning in cell A21. A comparision of calculated intensities using the design equations to the intensities shown in the NOAA
A42: table for select travel times is shown beginning in cell 45. The color codes reflect the closeness of agreement of the calculated intensity results to the NOAA data. The color scheme uses green as
A43: close agreement (maximum difference of 0.03), yellow as reasonably close agreement (> 0.03 but < 0.1) and red as large disagreement (> 0.1).
A45: An option to display additional output columns for each stream segment is available in cell "U3". Enter 0, 2, 5 or 14 before running the macro.
A46: "0" displays no additional columns in addition to the 7 usual columns.
A47: "2" displays 2 additional columns for normal stream depth and roughness in addition to the 7 usual columns.
A48: "5" displays 3 additional columns for stream velocity, Reynolds number and method in addition to the 7 usual columns and 2 additional columns..
A49: "14" displays 9 additional columns for calculated shear, permissible shear, safety factor (rock), Shields' parameter, Reynolds no., delta (rock), cross sectional area,
A50: required liner, required D50 and D50 used in analysis in addition to the 7 usual columns and 5 additional columns.
A52: Press CTRL-r to execute the macro.
A54: NOTE: As the side slope approaches the angle of repose, the Reynolds' number may increase rapidly.
A55: Gabion mattress, Type 1A usually will not be selected as a liner solution because Class III liner calculates to be stronger than a mattress unit based on a current HEC design method.

Sheet Design Flows
A2: Kentucky Transportation Cabinet | F2: RATIONAL FLOW ANALYSIS and DESIGN | O2: TC 61-507C | S2: Output
A3: Division of Highway Design 04-13 | O3: page 1 of 1 | R3: v16b | S3: Columns: | U3: 5 | AN3: V= | AO3: =O21 -> 1.834964174 | AP3: D50= | AQ3: =Y21 -> 0 | AS3: dn | AT3: =M21 -> 1.343249755 | AV3: Fr= | AW3: =AO3/SQRT(32.2*AT3) -> 0.2790109634
A4: County: | C4: Any County Name | L4: Road Name: | N4: Any Road Name | S4: (0, 2, 5,14) | AP4: T= | AQ4: =B15+AT3*(A15+C15) -> 9.059498528 | AS4: num | AT4: =0.262*AT3^(1/6) -> 0.2752078091
A5: Federal Proj. No.: | D5: Any Federal Project | L5: Route No.: | N5: Any Route No. | AP5: b= | AQ5: =1.14*(AQ3/AQ4)^0.453*(AT3/AQ3)^0.814 ->  | AS5: dem | AT5: =2.25+5.23*LOG(AT3/1) -> 2.920259907
A6: State Proj. No.: | D6: Any State Project | L6: Item No.: | N6: Any Item No. | AR6: Blodg | AS6: n | AT6: =AT4/AT5 -> 0.0942408614
A7: Intensity Region: | D7: NOAA | L7: Station No.: | N7: Any Station
A8: Comments: | C8: Any comment | AQ8: dn/D50= | AR8: =AT3/AQ3 -> 
A9: Overland Sheet Flow | E9: Geographic Site Location | M9: Shallow Concentrated Flow
A10: Lo | B10: no | C10: So | E10: latitude: | G10: 37.5098 | I10: longitude: | K10: -86.3251 | M10: k | N10: Sc | O10: Ls | P10: Vs | Q10: tsc | AR10: Bath | AS10: num | AT10: =1.49*AT3^(1/6) -> 1.565113113
A11: 60 | B11: 0.24 | C11: 0.125 | E11: Locate Site: | G11: Yes | H11: Leitchfield, Kentucky, US* | M11: 0.076 | N11: 0.02 | O11: 100 | P11: 0.3525351568 | Q11: 4.727660871 | AS11: f(Fr) | AT11: =(0.28*AW3/AQ5)^LOG(0.755/AQ5) -> 
A13: Channel Flow Segments | H13: Q10 Storm Results | O13: Comments | AS13: f(REG) | AT13: =13.434*(AQ4/AQ3)^0.492*AQ5^(1.025*(AQ4/AQ3)^0.118) -> 
A14: LSS | B14: W | C14: RSS | D14: L | E14: Sl | F14: Ar | G14: C | H14: dn | I14: n | J14: R | K14: Shear | L14: Q | M14: Liner | AS14: f(CG) | AT14: =(AQ4/AT3)^-AQ5 -> 
A15: 3 | B15: 1 | C15: 3 | D15: 600 | E15: 0.01 | F15: 9.14 | G15: 0.4 | H15: 1.485414751 | I15: 0.06233053733 | J15: 0.7797120848 | K15: 0.9268988046 | L15: 16.36875512 | M15: Veg.Class C | AS15: dem | AT15: =SQRT(32.2)*AT11*AT13*AT14 -> 
F18: 9.14 | G18: 0.4
B19: IDF Variables* | F19: Watershed Results | M19: Segment Summary
A20: RI | B20: a | C20: b | D20: m | F20: RI | G20: tov | H20: tsc | I20: tch | J20: tc | K20: I | L20: Q | M20: dn | N20: n | O20: V | P20: R | Q20: n Class
A21: 2 | B21: 53.72679927 | C21: 11.59513247 | D21: 0.8452764411 | F21: 2 | G21: 4.48341433 | H21: 4.727660871 | I21: 5.449697678 | J21: 14.66077288 | K21: 3.392749713 | L21: 12.40389295 | M21: 1.343249755 | N21: 0.06454303218 | O21: 1.834964174 | P21: 0.7115201715 | Q21: SCS
A22: 5 | B22: 43.89540015 | C22: 9.778718077 | D22: 0.7547224869
A23: 10 | B23: 38.50136073 | C23: 8.301826047 | D23: 0.6958013396
A24: 25 | B24: 32.77347012 | C24: 6.597920219 | D24: 0.6240853887 | F24: 5 | G24: 4.215259544 | H24: 4.727660871 | I24: 5.143750152 | J24: 14.08667057 | K24: 4.004848901 | L24: 14.64172758 | M24: 1.426340136 | N24: 0.06317470365 | O24: 1.944106868 | P24: 0.7513924168 | Q24: SCS
A25: 50 | B25: 29.20037907 | C25: 5.31892563 | D25: 0.5733424916
A26: 100 | B26: 26.49999006 | C26: 4.181918661 | D26: 0.5284919312
F27: 10 | G27: 4.029995611 | H27: 4.727660871 | I27: 4.95137574 | J27: 13.70903222 | K27: 4.479891248 | L27: 16.3784824 | M27: 1.485414751 | N27: 0.06233053733 | O27: 2.019640707 | P27: 0.7797120848 | Q27: SCS
A28: * I = a / (tc + b) ^ m
F30: 25 | G30: 3.835933569 | H30: 4.727660871 | I30: 4.738579386 | J30: 13.30217383 | K30: 5.069042352 | L30: 18.53241884 | M30: 1.552594767 | N30: 0.06128195455 | O30: 2.110337126 | P30: 0.8118923649 | Q30: SCS
F33: 50 | G33: 3.705015131 | H33: 4.727660871 | I33: 4.605483211 | J33: 13.03815921 | K33: 5.505491779 | L33: 20.12807794 | M33: 1.598948805 | N33: 0.06064105479 | O33: 2.171324819 | P33: 0.8340826758 | Q33: SCS
F36: 100 | G36: 3.58725374 | H36: 4.727660871 | I36: 5.164200851 | J36: 13.47911546 | K36: 5.810422976 | L36: 21.2429064 | M36: 1.752517201 | N36: 0.0719330592 | O36: 1.936408031 | P36: 0.9075277098 | Q36: Blodgett
F39: 500 | L39: 25.49148768
B43: DESIGN STORM
A44: tc | B44: 2 | C44: 5 | D44: 10 | E44: 25 | F44: 50 | G44: 100 | H44: IDF
A45: 5 | B45: 5 | C45: 5.75 | D45: 6.36 | E45: 7.1 | F45: 7.66 | G45: 8.21 | H45: FHWA
B46: 5 | C46: 5.75 | D46: 6.36 | E46: 7.1 | F46: 7.66 | G46: 8.21 | H46: NOAA
B47: -1.048050535e-13 | C47: -1.527666882e-13 | D47: 1.998401444e-13 | E47: 1.074695888e-13 | F47: 1.243449788e-13 | G47: 0 | H47: Diff
A48: 10 | B48: 4.002131787 | C48: 4.614760095 | D48: 5.093669562 | E48: 5.676815206 | F48: 6.107264626 | G48: 6.524737768 | H48: FHWA
B49: 4 | C49: 4.6 | D49: 5.08 | E49: 5.66 | F49: 6.1 | G49: 6.52 | H49: NOAA
B50: 0.00213178677 | C50: 0.01476009494 | D50: 0.0136695624 | E50: 0.01681520632 | F50: 0.007264626355 | G50: 0.004737768083 | H50: Diff
A51: 15 | B51: 3.356133835 | C51: 3.892927964 | D51: 4.30570544 | E51: 4.816542959 | F51: 5.194137234 | G51: 5.562213011 | H51: FHWA
B52: 3.35 | C52: 3.88 | D52: 4.28 | E52: 4.78 | F52: 5.14 | G52: 5.49 | H52: NOAA
B53: 0.006133835492 | C53: 0.01292796402 | D53: 0.02570544032 | E53: 0.03654295863 | F53: 0.05413723395 | G53: 0.07221301146 | H53: Diff
A54: 30 | B54: 2.299600933 | C54: 2.72349508 | D54: 3.046981687 | E54: 3.465709277 | F54: 3.783119164 | G54: 4.098705083 | H54: FHWA
B55: 2.31 | C55: 2.76 | D55: 3.1 | E55: 3.54 | F55: 3.87 | G55: 4.21 | H55: NOAA
B56: -0.01039906682 | C56: -0.03650492026 | D56: -0.05301831278 | E56: -0.07429072319 | F56: -0.08688083554 | G56: -0.1112949169 | H56: Diff
A57: 60 | B57: 1.45312056 | C57: 1.782049711 | D57: 2.037396787 | E57: 2.385213555 | F57: 2.659190729 | G57: 2.937938396 | H57: FHWA
B58: 1.45 | C58: 1.77 | D58: 2.02 | E58: 2.36 | F58: 2.63 | G58: 2.9 | H58: NOAA
B59: 0.003120559893 | C59: 0.01204971106 | D59: 0.01739678656 | E59: 0.02521355477 | F59: 0.02919072894 | G59: 0.03793839565 | H59: Diff
L102: =L87-L86 -> 0

Sheet Coeff
A1: Cairo | Q1: Segment Summary
A2: Return | B2: 2 | C2: 5 | D2: 10 | E2: 25 | F2: 50 | G2: 100 | Q2: dn | R2: n | S2: V | T2: R | U2: n Class
A3: A0 | B3: 6.41 | C3: 8.25 | D3: 9.45 | E3: 10.95 | F3: 12.07 | G3: 13.17
A4: A1 | B4: -0.02 | C4: -0.035 | D4: -0.04 | E4: -0.043 | F4: -0.046 | G4: -0.047 | Q4: Segm't Sum.
A5: A2 | B5: -0.082 | C5: -0.076 | D5: -0.074 | E5: -0.072 | F5: -0.07 | G5: -0.07 | Q5: dn | R5: n
A6: Cincinnati
A7: Return | B7: 2 | C7: 5 | D7: 10 | E7: 25 | F7: 50 | G7: 100
A8: A0 | B8: 7.26 | C8: 7.98 | D8: 8.53 | E8: 9.26 | F8: 9.81 | G8: 10.37
A9: A1 | B9: -0.127 | C9: -0.04 | D9: 0 | E9: 0.038 | F9: 0.06 | G9: 0.079
A10: A2 | B10: -0.074 | C10: -0.084 | D10: -0.088 | E10: -0.092 | F10: -0.095 | G10: -0.097
A11: Evansville
A12: Return | B12: 2 | C12: 5 | D12: 10 | E12: 25 | F12: 50 | G12: 100
A13: A0 | B13: 6.68 | C13: 8.21 | D13: 9.23 | E13: 10.53 | F13: 11.49 | G13: 12.44
A14: A1 | B14: -0.072 | C14: -0.066 | D14: -0.064 | E14: -0.061 | F14: -0.06 | G14: -0.059
A15: A2 | B15: -0.077 | C15: -0.074 | D15: -0.074 | E15: -0.072 | F15: -0.072 | G15: -0.071
A16: Knoxville
A17: Return | B17: 2 | C17: 5 | D17: 10 | E17: 25 | F17: 50 | G17: 100 | I17: old means - kinematic equation used prior to the current Drainage Manual
A18: A0 | B18: 5.5 | C18: 5.68 | D18: 5.9 | E18: 6.24 | F18: 6.52 | G18: 6.81
A19: A1 | B19: 0.036 | C19: 0.152 | D19: 0.204 | E19: 0.254 | F19: 0.283 | G19: 0.307 | I19: old | J19: to = 0.42 ( L * N ) ^ 0.8 / ( P2,24 ^ 0.5 * S ^ 0.4 ) | O19: not iterative
A20: A2 | B20: -0.095 | C20: -0.106 | D20: -0.111 | E20: -0.116 | F20: -0.119 | G20: -0.122
A21: Lexington | I21: current | J21: to = 0.933 ( L * N ) ^ 0.6 / ( I ^ 0.4 * S ^ 0.3 ) | O21: note S exponent
A22: Return | B22: 2 | C22: 5 | D22: 10 | E22: 25 | F22: 50 | G22: 100
A23: A0 | B23: 5.7 | C23: 6.44 | D23: 6.96 | E23: 7.64 | F23: 8.14 | G23: 8.66 | J23: I = Ao * tc ^ ( A1 = A2 * ln ( tc ) ) | O23: IDF equation
A24: A1 | B24: -0.004 | C24: 0.056 | D24: 0.086 | E24: 0.114 | F24: 0.131 | G24: 0.145
A25: A2 | B25: -0.088 | C25: -0.091 | D25: -0.093 | E25: -0.095 | F25: -0.096 | G25: -0.097
A26: Louisville | J26: L | K26: N | L26: S | M26: to | N26: tc | O26: I100
A27: Return | B27: 2 | C27: 5 | D27: 10 | E27: 25 | F27: 50 | G27: 100 | J27: 28 | K27: 0.2 | L27: 0.02 | M27: =0.933*(J27*K27)^0.6/(O27^0.4*L27^0.3) -> 3.536258672 | N27: 3.536 | O27: =$G$23*N27^($G$24+$G$25*LN(N27)) -> 8.909505274 | P27: iterative
A28: A0 | B28: 7.29 | C28: 8.53 | D28: 9.37 | E28: 10.47 | F28: 11.28 | G28: 12.11
A29: A1 | B29: -0.135 | C29: -0.084 | D29: -0.059 | E29: -0.037 | F29: -0.025 | G29: -0.014 | I29: P2,24 | J29: L | K29: N | L29: S | M29: to-old | O29: I100*
A30: A2 | B30: -0.071 | C30: -0.076 | D30: -0.079 | E30: -0.081 | F30: -0.082 | G30: -0.084 | I30: 3.1 | J30: 28 | K30: 0.2 | L30: 0.02 | M30: =0.42*(J30*K30)^0.8/(I30^0.5*L30^0.4) -> 4.525919934 | O30: =$G$23*M30^($G$24+$G$25*LN(M30)) -> 8.641027695 | P30: not iterative
A31: Nashville | Q31: Variable Summary
A32: Return | B32: 2 | C32: 5 | D32: 10 | E32: 25 | F32: 50 | G32: 100 | I32: * - uses Q100 Lexington Region values in IDF equation | Q32: ts | R32: tp | S32: SF | T32: Fx | U32: Re | V32: Delta | W32: A | X32: Liner | Y32: D50c | Z32: D50
A33: A0 | B33: 7.31 | C33: 9.94 | D33: 11.68 | E33: 13.89 | F33: 15.54 | G33: 17.17
A34: A1 | B34: -0.104 | C34: -0.159 | D34: -0.182 | E34: -0.205 | F34: -0.218 | G34: -0.229 | I34: PI | K34: K1 | L34: mu | N34: D50
A35: A2 | B35: -0.074 | C35: -0.063 | D35: -0.059 | E35: -0.054 | F35: -0.051 | G35: -0.049 | I35: 3.141592654 | K35: =IF(MIN('Design Flows'!A15,'Design Flows'!C15)<1.5,0.77,IF(MIN('Design Flows'!A15,'Design Flows'!C15)>5,1,MIN('Design Flows'!A15,'Design Flows'!C15)*0.066+0.067)) -> 0.265 | L35: 0.8209 | N35: 1
A36: Parkersburg | J36: Ch Sl | M36: Z
A37: Return | B37: 2 | C37: 5 | D37: 10 | E37: 25 | F37: 50 | G37: 100 | J37: ='Design Flows'!E15 -> 0.01 | M37: ='Design Flows'!A15 -> 3
A38: A0 | B38: 6.32 | C38: 8.08 | D38: 9.25 | E38: 10.72 | F38: 11.82 | G38: 12.91 | I38: Alpha = | J38: =ATAN('Design Flows'!E15) -> 0.009999666687 | K38: rad | L38: Theta = | M38: =ATAN(1/MIN('Design Flows'!A15,'Design Flows'!C15)) -> 0.3217505544 | N38: rad
A39: A1 | B39: -0.042 | C39: -0.04 | D39: -0.04 | E39: -0.039 | F39: -0.038 | G39: -0.038 | J39: =J38*180/$I$35 -> 0.5729386976 | K39: deg | M39: =M38*180/$I$35 -> 18.43494882 | N39: deg
A40: A2 | B40: -0.091 | C40: -0.089 | D40: -0.088 | E40: -0.087 | F40: -0.087 | G40: -0.086
A41: Wytheville | J41: =J42*I35/180 -> 0.7400196029 | K41: rad | L41: num = | M41: =COS(J38) -> 0.9999500037
A42: Return | B42: 2 | C42: 5 | D42: 10 | E42: 25 | F42: 50 | G42: 100 | I42: Phi = | J42: =IF(N35=0.5,42.2,42.4) -> 42.4 | K42: deg | L42: dem = | M42: =(2*SIN(M38)/(N50*TAN(J41)))+SIN(J38) -> 4.459496605
A43: A0 | B43: 6.09 | C43: 6.51 | D43: 6.9 | E43: 7.45 | F43: 7.88 | G43: 8.32 | L43: Beta= | M43: =ATAN(M41/M42) -> 0.2205808011 | N43: rad
A44: A1 | B44: -0.071 | C44: 0.038 | D44: 0.085 | E44: 0.128 | F44: 0.154 | G44: 0.174 | M44: =M43*180/I35 -> 12.63834894 | N44: deg
A45: A2 | B45: -0.08 | C45: -0.092 | D45: -0.096 | E45: -0.101 | F45: -0.104 | G45: -0.106 | I45: num = | J45: =K35*(1+SIN(J38+M43))*TAN(J41) -> 0.2972806075
I46: tl = | J46: =COS(M38)*TAN(J41) -> 0.8662668923
I47: tr = | J47: =SIN(M38)*COS(M43) -> 0.308565737 | L47: Q10 | M47: Re = | N47: =SQRT(32.2*'Design Flows'!H15*'Design Flows'!E15)*N35/0.00001217 -> 56827.84978
I48: diff = | J48: =J46-J47 -> 0.5577011554 | M48: Fx = | N48: =IF(N47<40000, 0.047,IF(N47>200000,0.15,0.047+((N47-40000)/160000)*0.103)) -> 0.0578329283
I49: dem = | J49: =2*J48 -> 1.115402311 | M49: ts = | N49: =62.4*'Design Flows'!H15*'Design Flows'!E15 -> 0.9268988046
I50: Delta = | J50: =J45/J49 -> 0.2665232129 | M50: mu = | N50: =N49/(N48*102.96*N35) -> 0.1556641503
T57: Cn = alpha * Cs ^ 0.10 *h ^ 0.528 | X57: (h in FT)
S58: Cn per Veg Class
T59: A | U59: B | V59: C | W59: D | X59: E
S60: h (in) | T60: 36 | U60: 24 | V60: 8 | W60: 4 | X60: 1.6
S61: Cs | T61: 33 | U61: 7.1 | V61: 3.9 | W61: 2.7 | X61: 3.8
S62: Cn | T62: =0.237*T61^0.1*(T60/12)^0.528 -> 0.6005093344 | U62: =0.237*U61^0.1*(U60/12)^0.528 -> 0.4157363689 | V62: =0.237*V61^0.1*(V60/12)^0.528 -> 0.2192192169 | W62: =0.237*W61^0.1*(W60/12)^0.528 -> 0.1465428724 | X62: =0.237*X61^0.1*(X60/12)^0.528 -> 0.09347475997
S63: Cn (general) | Y63: (Cn = 0.2 is typical)
S64: h (ft) | T64: Ex | U64: VG | V64: G | W64: F | X64: P
S65: 0.25 | T65: =0.237*$T$68^0.1*$S$65^0.528 -> 0.1682210264 | U65: =0.237*$U$68^0.1*S65^0.528 -> 0.1572731812 | V65: =0.237*$V$68^0.1*S65^0.528 -> 0.1419988808 | W65: =0.237*$W$68^0.1*S65^0.528 -> 0.1221697458 | X65: =0.237*$X$68^0.1*S65^0.528 -> 0.110456927
S66: 0.5 | T66: =0.237*$T$68^0.1*S66^0.528 -> 0.2425627548 | U66: =0.237*$U$68^0.1*S66^0.528 -> 0.2267767407 | V66: =0.237*$V$68^0.1*S66^0.528 -> 0.204752286 | W66: =0.237*$W$68^0.1*S66^0.528 -> 0.1761600837 | X66: =0.237*$X$68^0.1*S66^0.528 -> 0.1592710321
S67: 0.75 | T67: =0.237*$T$68^0.1*S67^0.528 -> 0.3004694355 | U67: =0.237*$U$68^0.1*S67^0.528 -> 0.2809148474 | V67: =0.237*$V$68^0.1*S67^0.528 -> 0.2536325243 | W67: =0.237*$W$68^0.1*S67^0.528 -> 0.2182145439 | X67: =0.237*$X$68^0.1*S67^0.528 -> 0.1972935917
S68: Cs | T68: 49 | U68: 25 | V68: 9 | W68: 2 | X68: 0.73
S70: Cf (general) | AA70: n = 0.213 * Cn * bo ^ -0.4
S71: Growth | T71: Ex | U71: VG | V71: G | W71: F | X71: P
S72: Sod | T72: 0.98 | U72: 0.95 | V72: 0.9 | W72: 0.84 | X72: 0.75
S73: Bunch | T73: 0.55 | U73: 0.53 | V73: 0.5 | W73: 0.47 | X73: 0.41
S74: Mixed | T74: 0.82 | U74: 0.79 | V74: 0.75 | W74: 0.7 | X74: 0.62
S75: Cf per veg class (interpolated) | AK75: e | AL75: PI | AM75: p,soil
S76: Growth | T76: A | U76: B | V76: C | W76: D | X76: E | AK76: 0.5 | AL76: 15
S77: Sod | T77: > 0.55 | U77: > 0.98 | V77: =T72 -> 0.98 | W77: =(W62-V65)/(U65-V65)*(U72-V72)+V72 -> 0.9148746308 | X77: < 0.75
S78: Bunch | T78: > 0.55 | U78: > 0.55 | V78: =($V$62-V66)/(U66-V66)*(U73-V73)+V73 -> 0.5197057286 | W78: < 0.41 | X78: < 0.41
S79: Mixed | T79: > 0.55 | U79: > 0.98 | V79: =(V62-W67)/(V67-W67)*(V74-W74)+W74 -> 0.7014183093 | W79: < 0.62 | X79: < 0.62 | AI79: ASTM Soil | AJ79: Applicable | AK79: C1 | AL79: C2 | AM79: C3 | AN79: C4 | AO79: C5 | AP79: C6
AI80: Classification | AJ80: Range
AI81: GM | AJ81: 10 < PI < 20 | AK81: 1.07 | AL81: 14.3 | AM81: 47.7 | AN81: 1.42 | AO81: -0.61 | AP81: 0.0001
AJ82: 20 < PI | AK82: 1.07 | AL82: 14.3 | AM82: 0.076 | AN82: 1.42 | AO82: -0.61 | AP82: 1
AI83: GC | AJ83: 10 < PI < 20 | AK83: 0.0477 | AL83: 2.86 | AM83: 42.9 | AN83: 1.42 | AO83: -0.61 | AP83: 0.001
AJ84: 20 < PI | AK84: 0.0477 | AL84: 2.86 | AM84: 0.119 | AN84: 1.42 | AO84: -0.61 | AP84: 1
AI85: SM | AJ85: 10 < PI < 20 | AK85: 1.07 | AL85: 7.15 | AM85: 11.9 | AN85: 1.42 | AO85: -0.61 | AP85: 0.0001
AJ86: 20 < PI | AK86: 1.07 | AL86: 7.15 | AM86: 0.058 | AN86: 1.42 | AO86: -0.61 | AP86: 1
AI87: SC | AJ87: 10 < PI < 20 | AK87: 1.07 | AL87: 14.3 | AM87: 47.7 | AN87: 1.42 | AO87: -0.61 | AP87: 0.0001
AJ88: 20 < PI | AK88: 1.07 | AL88: 14.3 | AM88: 0.076 | AN88: 1.42 | AO88: -0.61 | AP88: 1
AI89: ML | AJ89: 10 < PI < 20 | AK89: 1.07 | AL89: 7.15 | AM89: 11.9 | AN89: 1.48 | AO89: -0.57 | AP89: 0.0001
AJ90: 20 < PI | AK90: 1.07 | AL90: 7.15 | AM90: 0.058 | AN90: 1.48 | AO90: -0.57 | AP90: 1
AI91: CL | AJ91: 10 < PI < 20 | AK91: 1.07 | AL91: 14.3 | AM91: 47.7 | AN91: 1.48 | AO91: -0.57 | AP91: 0.0001
AJ92: 20 < PI | AK92: 1.07 | AL92: 14.3 | AM92: 0.076 | AN92: 1.48 | AO92: -0.57 | AP92: 1
AI93: MH | AJ93: 10 < PI < 20 | AK93: 0.0477 | AL93: 1.43 | AM93: 10.7 | AN93: 1.38 | AO93: -0.373 | AP93: 0.001
AJ94: 20 < PI | AK94: 0.0477 | AL94: 1.43 | AM94: 0.058 | AN94: 1.38 | AO94: -0.373 | AP94: 1
AI95: CH | AJ95: 20 < PI | AM95: 0.097 | AN95: 1.38 | AO95: -0.373 | AP95: 1

Sheet Map

Sheet Sheet1 (hidden)
I4: HYCHL Input / Output
H5: iterate | I5: Output | J5: Input
G6: T | H6: =K12+H8*(K7+K8) -> 5.0282 | I6: =K12+I8*(K7+K8) -> 5.54 | J6: Sl | K6: 0.14
G7: da/D50 | H7: =H8/H9 -> 0.5047 | I7: =I8/K9 -> 0.59 | J7: lss | K7: 3
G8: da | H8: 0.5047 | I8: 0.59 | J8: rss | K8: 3
G9: D50 | H9: 1 | J9: D50 | K9: 1
G10: A | H10: =H8*(K12+H8/2*(K7+K8)) -> 1.77356627 | I10: 2.24 | J10: Q | K10: 9.99
G12: WP | H12: =K12+H8*((K7^2+1)^0.5+(K8^2+1)^0.5) -> 5.19200307 | I12: 5.75 | J12: BW | K12: 2
G13: V | H13: =K10/H10 -> 5.632718759 | I13: 4.46
G14: Rh | H14: =H10/H12 -> 0.3415957668 | I14: =I10/I12 -> 0.3895652174
G15: n | H15: =1.486*H14^(2/3)*K6^0.5/H13 -> 0.04823619918 | I15: 0.068
G19: for da/D50 >185 | J19: unknown
G20: pg. 20 eq. 27 (HYCHL Manual)
G21: n | H21: =0.0232*H8^(1/6) -> 0.02070110536
G23: for da/D50 >2 and < 185 | J23: unknown
G24: pg. 19 eq. 26
G25: num | H25: =4.657*H14^(1/6) -> 3.893662621
G26: dem | H26: =32.25+5.23*LOG(H14/H9) -> 29.81027027
G27: n | H27: =H25/H26 -> 0.1306148044
G29: for da/D50 <2 | L29: Bathurst
G30: pg. 20 eq. 28
J31: f(FR) | K31: =((0.28/H34)*H32)^LOG(0.755/H34) -> 1.087140824
G32: Fr | H32: =H13/(32.2*H8)^0.5 -> 1.397247944 | J32: f(REG) | K32: =13.434*(H6/K9)^0.492*H34^(1.025*(H6/K9)^0.118) -> 7.073915998
G33: a | H33: =(1.175*(K9/H6)^0.557)^H35 -> 0.5481899262 | J33: f(CG) | K33: =(H6/H8)^-H34 -> 0.4856844653
G34: b | H34: =H33*(H8/K9)^H35 -> 0.3141549574 | J34: f(FR)*f(REG)*f(CG) | L34: =K31*K32*K33 -> 3.735080064
G35: c | H35: =0.648*0.182^-0.134 -> 0.8141893923 | M35: =L34-L36 -> 0.0007778558402 | N35: diff.
J36: V/sqr(g*da*S) | L36: =H13/(32.2*H8*K6)^0.5 -> 3.734302208
G38: user | J38: Anderson
G39: pg. 22 eq. 35 | J39: user n
G40: n | H40: =0.0481*K9^(1/6) -> 0.0481

Sheet NOAA Data2
A1: PDS-based precipitation frequency estimates with 90% confidence intervals (in inches/hour) | M1: LOCATION INFORMATION:
A2: Duration | B2: Average recurrence interval(years) | M2: Name: Leitchfield, Kentucky, US* | Q2: =MID(M2,7,40) -> Leitchfield, Kentucky, US* | T2: DESIGN STORM | AD2: IDF Variables*
B3: 1 | C3: 2 | D3: 5 | E3: 10 | F3: 25 | G3: 50 | H3: 100 | I3: 200 | J3: 500 | K3: 1000 | M3: Station Name: - | S3: tc | T3: 2 | U3: 5 | V3: 10 | W3: 25 | X3: 50 | Y3: 100 | Z3: IDF | AC3: RI | AD3: a | AE3: b | AF3: m
A4: 5-min | B4: 4.26 | C4: 5 | D4: 5.75 | E4: 6.36 | F4: 7.1 | G4: 7.66 | H4: 8.21 | I4: 8.72 | J4: 9.37 | K4: 9.86 | M4: Site ID: - | Q4: Lat/Long | S4: 5 | Z4: FHWA | AC4: 2
B5: (3.89‑4.64) | C5: (4.58‑5.47) | D5: (5.26‑6.29) | E5: (5.80‑6.94) | F5: (6.44‑7.75) | G5: (6.92‑8.35) | H5: (7.38‑8.95) | I5: (7.79‑9.54) | J5: (8.28‑10.3) | K5: (8.65‑10.8) | M5: Latitude: 37.5098 | Q5: =VALUE(MID(M5,11,9)) -> 37.5098 | Z5: NOAA | AC5: 5
A6: 10-min | B6: 3.4 | C6: 4 | D6: 4.6 | E6: 5.08 | F6: 5.66 | G6: 6.1 | H6: 6.52 | I6: 6.91 | J6: 7.41 | K6: 7.76 | M6: Longitude: -86.3251 | Q6: =VALUE(MID(M6,11,10)) -> -86.3251 | Z6: Diff | AC6: 10
B7: (3.11‑3.71) | C7: (3.67‑4.37) | D7: (4.21‑5.03) | E7: (4.64‑5.54) | F7: (5.14‑6.17) | G7: (5.51‑6.65) | H7: (5.86‑7.12) | I7: (6.17‑7.57) | J7: (6.55‑8.12) | K7: (6.82‑8.54) | M7: Elevation: 608ft* | S7: 10 | Z7: FHWA | AC7: 25
A8: 15-min | B8: 2.83 | C8: 3.35 | D8: 3.88 | E8: 4.28 | F8: 4.78 | G8: 5.14 | H8: 5.49 | I8: 5.82 | J8: 6.22 | K8: 6.5 | Z8: NOAA | AC8: 50
B9: (2.59‑3.09) | C9: (3.07‑3.67) | D9: (3.55‑4.24) | E9: (3.91‑4.68) | F9: (4.34‑5.22) | G9: (4.65‑5.62) | H9: (4.94‑6.00) | I9: (5.19‑6.36) | J9: (5.50‑6.82) | K9: (5.70‑7.15) | Z9: Diff | AC9: 100
A10: 30-min | B10: 1.94 | C10: 2.31 | D10: 2.76 | E10: 3.1 | F10: 3.54 | G10: 3.87 | H10: 4.21 | I10: 4.53 | J10: 4.95 | K10: 5.26 | S10: 15 | Z10: FHWA
B11: (1.78‑2.12) | C11: (2.12‑2.53) | D11: (2.52‑3.01) | E11: (2.83‑3.39) | F11: (3.21‑3.86) | G11: (3.50‑4.23) | H11: (3.78‑4.59) | I11: (4.04‑4.95) | J11: (4.37‑5.43) | K11: (4.62‑5.79) | Z11: NOAA | AC11: * I = a / (tc + b) ^ m
A12: 60-min | B12: 1.21 | C12: 1.45 | D12: 1.77 | E12: 2.02 | F12: 2.36 | G12: 2.63 | H12: 2.9 | I12: 3.17 | J12: 3.55 | K12: 3.84 | Z12: Diff
B13: (1.11‑1.32) | C13: (1.33‑1.59) | D13: (1.62‑1.93) | E13: (1.85‑2.21) | F13: (2.14‑2.57) | G13: (2.37‑2.87) | H13: (2.61‑3.16) | I13: (2.84‑3.47) | J13: (3.14‑3.89) | K13: (3.37‑4.23) | S13: 30 | Z13: FHWA
A14: 2-hr | B14: 0.73 | C14: 0.874 | D14: 1.07 | E14: 1.22 | F14: 1.43 | G14: 1.59 | H14: 1.76 | I14: 1.94 | J14: 2.18 | K14: 2.37 | Z14: NOAA
B15: (0.670‑0.794) | C15: (0.802‑0.952) | D15: (0.978‑1.16) | E15: (1.12‑1.33) | F15: (1.30‑1.55) | G15: (1.45‑1.73) | H15: (1.59‑1.92) | I15: (1.74‑2.12) | J15: (1.93‑2.39) | K15: (2.08‑2.60) | Z15: Diff
A16: 3-hr | B16: 0.529 | C16: 0.634 | D16: 0.775 | E16: 0.888 | F16: 1.04 | G16: 1.17 | H16: 1.3 | I16: 1.44 | J16: 1.63 | K16: 1.78 | S16: 60 | Z16: FHWA
B17: (0.489‑0.577) | C17: (0.585‑0.692) | D17: (0.713‑0.845) | E17: (0.816‑0.967) | F17: (0.955‑1.14) | G17: (1.07‑1.28) | H17: (1.18‑1.42) | I17: (1.29‑1.57) | J17: (1.44‑1.78) | K17: (1.56‑1.96) | Z17: NOAA
A18: 6-hr | B18: 0.327 | C18: 0.391 | D18: 0.478 | E18: 0.551 | F18: 0.653 | G18: 0.738 | H18: 0.827 | I18: 0.923 | J18: 1.06 | K18: 1.17 | Z18: Diff
B19: (0.303‑0.356) | C19: (0.362‑0.426) | D19: (0.442‑0.520) | E19: (0.507‑0.598) | F19: (0.598‑0.708) | G19: (0.671‑0.801) | H19: (0.746‑0.899) | I19: (0.824‑1.00) | J19: (0.931‑1.15) | K19: (1.02‑1.28)
A20: 12-hr | B20: 0.196 | C20: 0.234 | D20: 0.287 | E20: 0.331 | F20: 0.392 | G20: 0.444 | H20: 0.498 | I20: 0.556 | J20: 0.638 | K20: 0.706
B21: (0.181‑0.214) | C21: (0.217‑0.256) | D21: (0.264‑0.313) | E21: (0.304‑0.360) | F21: (0.358‑0.427) | G21: (0.401‑0.483) | H21: (0.447‑0.543) | I21: (0.494‑0.606) | J21: (0.558‑0.699) | K21: (0.609‑0.777)
A22: 24-hr | B22: 0.12 | C22: 0.143 | D22: 0.175 | E22: 0.201 | F22: 0.237 | G22: 0.266 | H22: 0.297 | I22: 0.329 | J22: 0.374 | K22: 0.41
B23: (0.112‑0.129) | C23: (0.133‑0.155) | D23: (0.163‑0.189) | E23: (0.186‑0.216) | F23: (0.219‑0.255) | G23: (0.245‑0.287) | H23: (0.272‑0.320) | I23: (0.300‑0.354) | J23: (0.338‑0.403) | K23: (0.368‑0.443)
A24: 2-day | B24: 0.072 | C24: 0.086 | D24: 0.105 | E24: 0.121 | F24: 0.144 | G24: 0.162 | H24: 0.182 | I24: 0.203 | J24: 0.232 | K24: 0.256
B25: (0.066‑0.078) | C25: (0.079‑0.093) | D25: (0.097‑0.114) | E25: (0.112‑0.131) | F25: (0.132‑0.156) | G25: (0.149‑0.176) | H25: (0.166‑0.197) | I25: (0.184‑0.219) | J25: (0.208‑0.252) | K25: (0.228‑0.278)
A26: 3-day | B26: 0.051 | C26: 0.061 | D26: 0.075 | E26: 0.086 | F26: 0.101 | G26: 0.114 | H26: 0.127 | I26: 0.141 | J26: 0.161 | K26: 0.176
B27: (0.047‑0.055) | C27: (0.057‑0.066) | D27: (0.069‑0.081) | E27: (0.079‑0.093) | F27: (0.093‑0.110) | G27: (0.105‑0.124) | H27: (0.116‑0.138) | I27: (0.128‑0.153) | J27: (0.145‑0.174) | K27: (0.157‑0.192)
A28: 4-day | B28: 0.041 | C28: 0.049 | D28: 0.059 | E28: 0.068 | F28: 0.08 | G28: 0.09 | H28: 0.1 | I28: 0.11 | J28: 0.125 | K28: 0.137
B29: (0.038‑0.044) | C29: (0.045‑0.053) | D29: (0.055‑0.065) | E29: (0.063‑0.074) | F29: (0.074‑0.087) | G29: (0.083‑0.097) | H29: (0.091‑0.108) | I29: (0.100‑0.120) | J29: (0.113‑0.136) | K29: (0.122‑0.149)
A30: 7-day | B30: 0.028 | C30: 0.033 | D30: 0.041 | E30: 0.047 | F30: 0.055 | G30: 0.062 | H30: 0.07 | I30: 0.078 | J30: 0.089 | K30: 0.098
B31: (0.026‑0.030) | C31: (0.031‑0.036) | D31: (0.037‑0.044) | E31: (0.043‑0.051) | F31: (0.051‑0.060) | G31: (0.057‑0.068) | H31: (0.063‑0.076) | I31: (0.070‑0.084) | J31: (0.079‑0.097) | K31: (0.087‑0.107)
A32: 10-day | B32: 0.022 | C32: 0.026 | D32: 0.032 | E32: 0.036 | F32: 0.042 | G32: 0.047 | H32: 0.052 | I32: 0.058 | J32: 0.065 | K32: 0.07
B33: (0.021‑0.024) | C33: (0.024‑0.029) | D33: (0.030‑0.035) | E33: (0.034‑0.039) | F33: (0.039‑0.046) | G33: (0.043‑0.051) | H33: (0.048‑0.057) | I33: (0.052‑0.062) | J33: (0.058‑0.070) | K33: (0.063‑0.077)
A34: 20-day | B34: 0.015 | C34: 0.018 | D34: 0.021 | E34: 0.024 | F34: 0.027 | G34: 0.03 | H34: 0.032 | I34: 0.035 | J34: 0.038 | K34: 0.04
B35: (0.014‑0.016) | C35: (0.017‑0.019) | D35: (0.020‑0.023) | E35: (0.022‑0.025) | F35: (0.025‑0.029) | G35: (0.028‑0.032) | H35: (0.030‑0.034) | I35: (0.032‑0.037) | J35: (0.035‑0.040) | K35: (0.037‑0.043)
A36: 30-day | B36: 0.012 | C36: 0.015 | D36: 0.017 | E36: 0.019 | F36: 0.021 | G36: 0.023 | H36: 0.025 | I36: 0.027 | J36: 0.03 | K36: 0.031
B37: (0.012‑0.013) | C37: (0.014‑0.015) | D37: (0.016‑0.018) | E37: (0.018‑0.020) | F37: (0.020‑0.023) | G37: (0.022‑0.025) | H37: (0.024‑0.027) | I37: (0.025‑0.029) | J37: (0.027‑0.032) | K37: (0.029‑0.034)
A38: 45-day | B38: 0.01 | C38: 0.012 | D38: 0.014 | E38: 0.015 | F38: 0.017 | G38: 0.019 | H38: 0.02 | I38: 0.021 | J38: 0.023 | K38: 0.024
B39: (0.010‑0.011) | C39: (0.011‑0.013) | D39: (0.013‑0.015) | E39: (0.015‑0.016) | F39: (0.016‑0.018) | G39: (0.018‑0.020) | H39: (0.019‑0.021) | I39: (0.020‑0.022) | J39: (0.021‑0.024) | K39: (0.022‑0.026)
A40: 60-day | B40: 0.009 | C40: 0.011 | D40: 0.012 | E40: 0.014 | F40: 0.015 | G40: 0.016 | H40: 0.017 | I40: 0.018 | J40: 0.019 | K40: 0.02
B41: (0.009‑0.010) | C41: (0.010‑0.011) | D41: (0.012‑0.013) | E41: (0.013‑0.014) | F41: (0.014‑0.016) | G41: (0.015‑0.017) | H41: (0.016‑0.018) | I41: (0.017‑0.019) | J41: (0.018‑0.020) | K41: (0.019‑0.021)
B43: 1
A44: NOAA intensity | C44: 2 | D44: 5 | E44: 10 | F44: 25 | G44: 50 | H44: 100 | I44: 200 | J44: 500 | K44: 1000
A45: 5-min | B45: =B4 -> 4.26 | C45: 5 | D45: 5.75 | E45: 6.36 | F45: 7.1 | G45: 7.66 | H45: 8.21 | I45: 8.72 | J45: 9.37 | K45: =K4 -> 9.86
A46: 10-min | B46: =B6 -> 3.4 | C46: 4 | D46: 4.6 | E46: 5.08 | F46: 5.66 | G46: 6.1 | H46: 6.52 | I46: 6.91 | J46: 7.41 | K46: =K6 -> 7.76
A47: 15-min | B47: =B8 -> 2.83 | C47: 3.35 | D47: 3.88 | E47: 4.28 | F47: 4.78 | G47: 5.14 | H47: 5.49 | I47: 5.82 | J47: 6.22 | K47: =K8 -> 6.5
A48: 30-min | B48: =B10 -> 1.94 | C48: 2.31 | D48: 2.76 | E48: 3.1 | F48: 3.54 | G48: 3.87 | H48: 4.21 | I48: 4.53 | J48: 4.95 | K48: =K10 -> 5.26
A49: 60-min | B49: =B12 -> 1.21 | C49: 1.45 | D49: 1.77 | E49: 2.02 | F49: 2.36 | G49: 2.63 | H49: 2.9 | I49: 3.17 | J49: 3.55 | K49: =K12 -> 3.84
A50: 2-hr | B50: =B14 -> 0.73 | C50: 0.874 | D50: 1.07 | E50: 1.22 | F50: 1.43 | G50: 1.59 | H50: 1.76 | I50: 1.94 | J50: 2.18 | K50: =K14 -> 2.37
A52: NOAA Depth
A53: 5-min | B53: 0.354 | C53: 0.416 | D53: 0.477 | E53: 0.527 | F53: 0.587 | G53: 0.633 | H53: 0.677 | I53: 0.719 | J53: 0.77 | K53: 0.809
A54: 10-min | B54: 0.565 | C54: 0.665 | D54: 0.763 | E54: 0.842 | F54: 0.936 | G54: 1.01 | H54: 1.08 | I54: 1.14 | J54: 1.22 | K54: 1.27
A55: 15-min | B55: 0.707 | C55: 0.835 | D55: 0.966 | E55: 1.07 | F55: 1.19 | G55: 1.28 | H55: 1.36 | I55: 1.44 | J55: 1.53 | K55: 1.6
A56: 30-min | B56: 0.969 | C56: 1.15 | D56: 1.37 | E56: 1.54 | F56: 1.76 | G56: 1.92 | H56: 2.08 | I56: 2.24 | J56: 2.44 | K56: 2.59
A57: 60-min | B57: 1.21 | C57: 1.45 | D57: 1.76 | E57: 2.01 | F57: 2.34 | G57: 2.6 | H57: 2.87 | I57: 3.14 | J57: 3.5 | K57: 3.78
A58: 2-hr | B58: 1.45 | C58: 1.73 | D58: 2.1 | E58: 2.39 | F58: 2.8 | G58: 3.12 | H58: 3.45 | I58: 3.79 | J58: 4.25 | K58: 4.61
A60: calc intensity
A61: 5-min | B61: =B53/5*60 -> 4.248 | C61: =C53/5*60 -> 4.992 | D61: 5.724 | E61: 6.324 | F61: 7.044 | G61: 7.596 | H61: 8.124 | I61: 8.628 | J61: 9.24 | K61: 9.708
A62: 10-min | B62: =B54/10*60 -> 3.39 | C62: =C54/10*60 -> 3.99 | D62: 4.578 | E62: 5.052 | F62: 5.616 | G62: 6.06 | H62: 6.48 | I62: 6.84 | J62: 7.32 | K62: 7.62
A63: 15-min | B63: =B55/15*60 -> 2.828 | C63: =C55/15*60 -> 3.34 | D63: 3.864 | E63: 4.28 | F63: 4.76 | G63: 5.12 | H63: 5.44 | I63: 5.76 | J63: 6.12 | K63: 6.4
A64: 30-min | B64: =B56/30*60 -> 1.938 | C64: =C56/30*60 -> 2.3 | D64: 2.74 | E64: 3.08 | F64: 3.52 | G64: 3.84 | H64: 4.16 | I64: 4.48 | J64: 4.88 | K64: 5.18
A65: 60-min | B65: =B57 -> 1.21 | C65: =C12 -> 1.45 | D65: 1.77 | E65: 2.02 | F65: 2.36 | G65: 2.63 | H65: 2.9 | I65: 3.17 | J65: 3.55 | K65: =K12 -> 3.84
A66: 2-hr | B66: =B58/120*60 -> 0.725 | C66: =C58/120*60 -> 0.865 | D66: 1.05 | E66: 1.195 | F66: 1.4 | G66: 1.56 | H66: 1.725 | I66: 1.895 | J66: 2.125 | K66: 2.305
A68: NOAA-calc
A69: 5-min | B69: =B45-B61 -> 0.012 | C69: =C45-C61 -> 0.008 | D69: 0.026 | E69: 0.036 | F69: 0.056 | G69: 0.064 | H69: 0.086 | I69: 0.092 | J69: 0.13 | K69: 0.152
A70: 10-min | B70: =B46-B62 -> 0.01 | C70: 0.01 | D70: 0.022 | E70: 0.028 | F70: 0.044 | G70: 0.04 | H70: 0.04 | I70: 0.07 | J70: 0.09 | K70: 0.14
A71: 15-min | B71: =B47-B63 -> 0.002 | C71: 0.01 | D71: 0.016 | E71: 0 | F71: 0.02 | G71: 0.02 | H71: 0.05 | I71: 0.06 | J71: 0.1 | K71: 0.1
A72: 30-min | B72: =B48-B64 -> 0.002 | C72: 0.01 | D72: 0.02 | E72: 0.02 | F72: 0.02 | G72: 0.03 | H72: 0.05 | I72: 0.05 | J72: 0.07 | K72: 0.08
A73: 60-min | B73: =B49-B65 -> 0 | C73: 0 | D73: 0 | E73: 0 | F73: 0 | G73: 0 | H73: 0 | I73: 0 | J73: 0 | K73: 0
A74: 2-hr | B74: =B50-B66 -> 0.005 | C74: 0.009 | D74: 0.02 | E74: 0.025 | F74: 0.03 | G74: 0.03 | H74: 0.035 | I74: 0.045 | J74: 0.055 | K74: 0.065
